fUSD/lending_fUSD_20240921
["ID","MTS","AMOUNT","RATE_DAILY","PERIOD"]
[338736312,1726902646628,-500.0,0.00012998,2]
[338736313,1726902646638,-532.72,0.00012998,2]
[338736314,1726902646647,-532.72,0.00012998,2]
[338736315,1726902646656,-500.0,0.00012998,2]
[338736316,1726902646666,-500.0,0.00012998,2]
[338736317,1726902646675,-500.0,0.00012998,2]
[338736318,1726902646684,-500.0,0.00012998,2]
[338736319,1726902646694,-500.0,0.00012998,2]
[338736320,1726902646703,-500.0,0.00012998,2]
[338736321,1726902646712,-500.0,0.00012998,2]
[338736322,1726902646723,-500.0,0.00012998,2]
[338736323,1726902646734,-500.0,0.00012998,2]
[338736324,1726902646744,-500.0,0.00012998,2]
[338736325,1726902646754,-500.0,0.00012998,2]
[338736326,1726902646763,-500.0,0.00012998,2]
[338736327,1726902646774,-500.0,0.00012998,2]
[338736328,1726902646784,-500.0,0.00012998,2]
[338736329,1726902646794,-500.0,0.00012998,2]
[338736330,1726902646807,-500.0,0.00012998,2]
[338736331,1726902646818,-500.0,0.00012998,2]
[338736332,1726902646828,-272.54,0.00012998,2]
[338736333,1726902646837,-500.0,0.00012998,2]
[338736334,1726902646847,-500.0,0.00012998,2]
[338736335,1726902646856,-500.0,0.00012998,2]
[338736336,1726902646866,-500.0,0.00012998,2]
[338736337,1726902646875,-500.0,0.00012998,2]
[338736338,1726902646884,-512.99,0.00012998,2]
[338736339,1726902646894,-500.0,0.00012998,2]
[338736340,1726902646903,-500.0,0.00012998,2]
[338736341,1726902646913,-500.0,0.00012998,2]
[338736342,1726902646922,-239.14,0.00012998,2]
[338736343,1726902646932,-500.0,0.00012998,2]
[338736344,1726902646941,-500.0,0.00012998,2]
[338736345,1726902646951,-250.26,0.00012998,2]
[338736346,1726902646960,-841.02,0.00012998,2]
[338736347,1726902646970,-841.02,0.00012998,2]
[338736348,1726902646980,-500.0,0.00012998,2]
[338736349,1726902646990,-500.0,0.00012998,2]
[338736350,1726902646999,-457.2,0.00012998,2]
[338736351,1726902647009,-500.0,0.00012998,2]
[338736352,1726902647018,-500.0,0.00012998,2]
[338736353,1726902647028,-506.4015659,0.00012998,2]
[338736354,1726902647037,-500.0,0.00012998,2]
[338736355,1726902647047,-366.68,0.00012998,2]
[338736356,1726902647056,-500.0,0.00012998,2]
[338736357,1726902647066,-500.0,0.00012998,2]
[338736358,1726902647075,-500.0,0.00012998,2]
[338736359,1726902647085,-500.0,0.00012998,2]
[338736360,1726902647095,-500.0,0.00012998,2]
[338736361,1726902647104,-500.0,0.00012998,2]
[338736362,1726902647114,-500.0,0.00012998,2]
[338736363,1726902647123,-500.0,0.00012998,2]
[338736364,1726902647133,-500.0,0.00012998,2]
[338736365,1726902647143,-500.0,0.00012998,2]
[338736366,1726902647153,-500.0,0.00012998,2]
[338736367,1726902647163,-500.0,0.00012998,2]
[338736368,1726902647173,-500.0,0.00012998,2]
[338736369,1726902647182,-500.0,0.00012998,2]
[338736370,1726902647191,-498.22413649,0.00012998,2]
[338736371,1726902647201,-500.0,0.00012998,2]
[338736372,1726902647210,-500.0,0.00012998,2]
[338736373,1726902647220,-500.0,0.00012998,2]
[338736374,1726902647230,-500.0,0.00012998,2]
[338736375,1726902647239,-500.0,0.00012998,2]
[338736376,1726902647249,-500.0,0.00012998,2]
[338736377,1726902647258,-500.0,0.00012998,2]
[338736378,1726902647268,-500.0,0.00012998,2]
[338736379,1726902647277,-500.0,0.00012998,2]
[338736380,1726902647286,-500.0,0.00012998,2]
[338736381,1726902647297,-500.0,0.00012998,2]
[338736382,1726902647307,-500.0,0.00012998,2]
[338736383,1726902647318,-500.0,0.00012998,2]
[338736384,1726902647327,-500.0,0.00012998,2]
[338736385,1726902647337,-500.0,0.00012998,2]
[338736386,1726902647347,-500.0,0.00012998,2]
[338736387,1726902647357,-455.24,0.00012998,2]
[338736388,1726902647367,-500.0,0.00012998,2]
[338736389,1726902647379,-500.0,0.00012998,2]
[338736390,1726902647390,-500.0,0.00012998,2]
[338736391,1726902647400,-500.0,0.00012998,2]
[338736392,1726902647410,-500.0,0.00012998,2]
[338736393,1726902647421,-500.0,0.00012998,2]
[338736394,1726902647432,-500.0,0.00012998,2]
[338736395,1726902647444,-500.0,0.00012998,2]
[338736396,1726902647456,-238.24,0.00012998,2]
[338736397,1726902647466,-500.0,0.00012998,2]
[338736398,1726902647476,-500.0,0.00012998,2]
[338736399,1726902647485,-500.0,0.00012998,2]
[338736400,1726902647494,-500.0,0.00012998,2]
[338736401,1726902647504,-177.14,0.00012998,2]
[338736402,1726902647513,-522.01,0.00012998,2]
[338736403,1726902647523,-500.0,0.00012998,2]
[338736404,1726902647532,-500.0,0.00012998,2]
[338736405,1726902647541,-500.0,0.00012998,2]
[338736406,1726902647550,-517.52,0.00012998,2]
[338736407,1726902647560,-500.0,0.00012998,2]
[338736408,1726902647569,-500.0,0.00012998,2]
[338736409,1726902647578,-500.0,0.00012998,2]
[338736410,1726902647587,-500.0,0.00012998,2]
[338736411,1726902647596,-500.0,0.00012998,2]
[338736412,1726902647605,-228.02,0.00012998,2]
[338736413,1726902647615,-500.0,0.00012998,2]
[338736414,1726902647623,-500.0,0.00012998,2]
[338736415,1726902647632,-500.0,0.00012998,2]
[338736416,1726902647642,-500.0,0.00012998,2]
[338736417,1726902647651,-500.0,0.00012998,2]
[338736418,1726902647660,-501.12,0.00012998,2]
[338736419,1726902647670,-500.0,0.00012998,2]
[338736420,1726902647680,-507.18,0.00012998,2]
[338736421,1726902647689,-500.0,0.00012998,2]
[338736422,1726902647699,-500.0,0.00012998,2]
[338736423,1726902647708,-500.0,0.00012998,2]
[338736424,1726902647718,-500.0,0.00012998,2]
[338736425,1726902647730,-500.0,0.00012998,2]
[338736426,1726902647740,-500.0,0.00012998,2]
[338736427,1726902647749,-215.38,0.00012998,2]
[338736428,1726902647758,-500.0,0.00012998,2]
[338736429,1726902647768,-500.0,0.00012998,2]
[338736430,1726902647777,-590.42,0.00012998,2]
[338736431,1726902647787,-500.0,0.00012998,2]
[338736432,1726902647796,-506.36,0.00012998,2]
[338736433,1726902647805,-500.0,0.00012998,2]
[338736434,1726902647816,-500.0,0.00012998,2]
[338736435,1726902647825,-202.4,0.00012998,2]
[338736436,1726902647835,-500.0,0.00012998,2]
[338736437,1726902647845,-500.0,0.00012998,2]
[338736438,1726902647854,-511.02,0.00012998,2]
[338736439,1726902647864,-202.91,0.00012998,2]
[338736440,1726902647873,-500.0,0.00012998,2]
[338736441,1726902647883,-500.0,0.00012998,2]
[338736442,1726902647892,-500.0,0.00012998,2]
[338736443,1726902647901,-281.78,0.00012998,2]
[338736444,1726902647910,-500.0,0.00012998,2]
[338736445,1726902647920,-500.0,0.00012998,2]
[338736446,1726902647929,-500.0,0.00012998,2]
[338736447,1726902647938,-500.0,0.00012998,2]
[338736448,1726902647948,-302.86,0.00012998,2]
[338736449,1726902647957,-500.0,0.00012998,2]
[338736450,1726902647966,-500.0,0.00012998,2]
[338736451,1726902647975,-500.0,0.00012998,2]
[338736452,1726902647984,-210.76,0.00012998,2]
[338736453,1726902647994,-500.0,0.00012998,2]
[338736454,1726902648003,-234.44395672,0.00012998,2]
[338736455,1726902648012,-190.43,0.00012998,2]
[338736456,1726902648022,-288.36965262,0.00012998,2]
[338736457,1726902648031,-500.0,0.00012998,2]
[338736458,1726902648041,-197.94,0.00012998,2]
[338736459,1726902648050,-500.0,0.00012998,2]
[338736460,1726902648059,-500.0,0.00012998,2]
[338736461,1726902648069,-371.64,0.00012998,2]
[338736462,1726902648078,-500.0,0.00012998,2]
[338736463,1726902648088,-500.0,0.00012998,2]
[338736464,1726902648097,-619.11242974,0.00012998,2]
[338736465,1726902648106,-500.0,0.00012998,2]
[338736466,1726902648115,-500.0,0.00012998,2]
[338736467,1726902648124,-500.0,0.00012998,2]
[338736468,1726902648134,-500.0,0.00012998,2]
[338736469,1726902648143,-500.0,0.00012998,2]
[338736470,1726902648153,-500.0,0.00012998,2]
[338736471,1726902648162,-500.0,0.00012998,2]
[338736472,1726902648172,-500.0,0.00012998,2]
[338736473,1726902648181,-257.89709114,0.00012998,2]
[338736474,1726902648190,-500.0,0.00012998,2]
[338736475,1726902648200,-500.0,0.00012998,2]
[338736476,1726902648209,-500.0,0.00012998,2]
[338736477,1726902648225,-500.0,0.00012998,2]
[338736478,1726902648234,-500.0,0.00012998,2]
[338736479,1726902648244,-500.0,0.00012998,2]
[338736480,1726902648253,-500.0,0.00012998,2]
[338736481,1726902648263,-500.0,0.00012998,2]
[338736482,1726902648272,-500.0,0.00012998,2]
[338736483,1726902648281,-500.0,0.00012998,2]
[338736484,1726902648290,-500.0,0.00012998,2]
[338736485,1726902648300,-500.0,0.00012998,2]
[338736486,1726902648310,-500.0,0.00012998,2]
[338736487,1726902648319,-288.3,0.00012998,2]
[338736488,1726902648328,-500.0,0.00012998,2]
[338736489,1726902648338,-402.6,0.00012998,2]
[338736490,1726902648347,-474.66,0.00012998,2]
[338736491,1726902648356,-395.04,0.00012998,2]
[338736492,1726902648366,-500.0,0.00012998,2]
[338736493,1726902648375,-500.0,0.00012998,2]
[338736494,1726902648384,-500.0,0.00012998,2]
[338736495,1726902648394,-500.0,0.00012998,2]
[338736496,1726902648403,-500.0,0.00012998,2]
[338736497,1726902648412,-500.0,0.00012998,2]
[338736498,1726902648421,-164.9,0.00012998,2]
[338736499,1726902648431,-537.42519138,0.00012998,2]
[338736500,1726902648440,-500.0,0.00012998,2]
[338736501,1726902648449,-500.0,0.00012998,2]
[338736502,1726902648459,-500.0,0.00012998,2]
[338736503,1726902648469,-500.0,0.00012998,2]
[338736504,1726902648478,-500.0,0.00012998,2]
[338736505,1726902648487,-500.0,0.00012998,2]
[338736506,1726902648496,-214.5,0.00012998,2]
[338736507,1726902648505,-500.0,0.00012998,2]
[338736508,1726902648515,-500.0,0.00012998,2]
[338736509,1726902648524,-500.0,0.00012998,2]
[338736510,1726902648533,-396.82,0.00012998,2]
[338736511,1726902648542,-500.0,0.00012998,2]
[338736512,1726902648552,-242.24,0.00012998,2]
[338736513,1726902648561,-295.72,0.00012998,2]
[338736514,1726902648571,-500.0,0.00012998,2]
[338736515,1726902648580,-500.0,0.00012998,2]
[338736516,1726902648590,-399.76,0.00012998,2]
[338736517,1726902648599,-500.0,0.00012998,2]
[338736518,1726902648609,-500.0,0.00012998,2]
[338736519,1726902648618,-500.0,0.00012998,2]
[338736520,1726902648627,-500.0,0.00012998,2]
[338736521,1726902648636,-199.92,0.00012998,2]
[338736522,1726902648646,-500.0,0.00012998,2]
[338736523,1726902648655,-277.32,0.00012998,2]
[338736524,1726902648664,-500.0,0.00012998,2]
[338736525,1726902648674,-500.0,0.00012998,2]
[338736526,1726902648683,-647.78159112,0.00012998,2]
[338736527,1726902648692,-595.9,0.00012998,2]
[338736528,1726902648701,-500.0,0.00012998,2]
[338736529,1726902648710,-436.22,0.00012998,2]
[338736530,1726902648721,-500.0,0.00012998,2]
[338736531,1726902648732,-249.18,0.00012998,2]
[338736532,1726902648741,-500.0,0.00012998,2]
[338736533,1726902648751,-500.0,0.00012998,2]
[338736534,1726902648760,-500.0,0.00012998,2]
[338736535,1726902648770,-500.0,0.00012998,2]
[338736536,1726902648779,-573.89,0.00012998,2]
[338736537,1726902648788,-500.0,0.00012998,2]
[338736538,1726902648798,-500.0,0.00012998,2]
[338736539,1726902648807,-500.0,0.00012998,2]
[338736540,1726902648940,-500.0,0.00012998,2]
[338736541,1726902648963,-500.0,0.00012998,2]
[338736542,1726902648974,-423.5,0.00012998,2]
[338736543,1726902648984,-500.0,0.00012998,2]
[338736544,1726902648994,-500.0,0.00012998,2]
[338736545,1726902649003,-500.0,0.00012998,2]
[338736546,1726902649014,-500.0,0.00012998,2]
[338736547,1726902649024,-500.0,0.00012998,2]
[338736548,1726902649034,-157.68,0.00012998,2]
[338736549,1726902649044,-500.0,0.00012998,2]
[338736550,1726902649054,-500.0,0.00012998,2]
[338736551,1726902649064,-500.0,0.00012998,2]
[338736552,1726902649074,-500.0,0.00012998,2]
[338736553,1726902649083,-500.0,0.00012998,2]
[338736554,1726902649093,-605.8,0.00012998,2]
[338736555,1726902649103,-430.14,0.00012998,2]
[338736556,1726902649114,-500.0,0.00012998,2]
[338736557,1726902649124,-500.0,0.00012998,2]
[338736558,1726902649135,-500.0,0.00012998,2]
[338736559,1726902649144,-500.0,0.00012998,2]
[338736560,1726902649154,-500.0,0.00012998,2]
[338736561,1726902649164,-500.0,0.00012998,2]
[338736562,1726902649173,-492.43,0.00012998,2]
[338736563,1726902649183,-500.0,0.00012998,2]
[338736564,1726902649193,-500.0,0.00012998,2]
[338736565,1726902649203,-500.0,0.00012998,2]
[338736566,1726902649212,-571.14,0.00012998,2]
[338736567,1726902649222,-500.0,0.00012998,2]
[338736568,1726902649232,-500.0,0.00012998,2]
[338736569,1726902649242,-500.0,0.00012998,2]
[338736570,1726902649252,-240.98,0.00012998,2]
[338736571,1726902649262,-500.0,0.00012998,2]
[338736572,1726902649273,-408.62,0.00012998,2]
[338736573,1726902649283,-500.0,0.00012998,2]
[338736574,1726902649293,-620.1,0.00012998,2]
[338736575,1726902649302,-500.0,0.00012998,2]
[338736576,1726902649312,-500.0,0.00012998,2]
[338736577,1726902649322,-500.0,0.00012998,2]
[338736578,1726902649331,-177.9,0.00012998,2]
[338736579,1726902649341,-500.0,0.00012998,2]
[338736580,1726902649350,-500.0,0.00012998,2]
[338736581,1726902649360,-500.0,0.00012998,2]
[338736582,1726902649369,-500.0,0.00012998,2]
[338736583,1726902649379,-1718.17149385,0.00012998,2]
[338736584,1726902649389,-1100.0,0.00013,2]
[338736585,1726902649398,-386.95,0.00013,2]
[338736586,1726902649407,-997.52,0.00013,2]
[338736587,1726902649417,-100.18331478,0.0001313,2]
[338736588,1726902650522,-105.81668522,0.0001313,2]
[338736589,1726902650532,-761.92972074,0.0001321,2]
[338736590,1726902650544,-956.24177311,0.0001321,2]
[338736591,1726902650553,-155.26058302,0.00013256,2]
[338736592,1726902650565,-35.2982059,0.000133,2]
[338736593,1726902650580,-170.7017941,0.000133,2]
[338736594,1726902650591,-140.4402059,0.00013338,2]
[338736595,1726902651025,-581.0751696,0.00013338,2]
[338736596,1726902651037,-659.56202673,0.00013338,2]
[338736597,1726902651048,-1487.39348034,0.00013338,2]
[338736598,1726902651059,-1467.29741007,0.00013338,2]
[338736599,1726902651071,-1221.18105363,0.00013338,2]
[338736600,1726902651083,-5578.94510997,0.00013338,2]
[338736601,1726902651095,-245.18294599,0.00013338,2]
[338736602,1726902651104,-262.68,0.00013381,2]
[338736603,1726902651115,-171.98,0.00013384,2]
[338736604,1726902651125,-583.79951901,0.00013395,2]
[338736605,1726902651137,-16.20048099,0.00013395,2]
[338736606,1726902651147,-1718.17149385,0.00013422,2]
[338736607,1726902651157,-206.0,0.0001347,2]
[338736608,1726902651167,-155.26058302,0.00013615,2]
[338736609,1726902651177,-206.0,0.0001364,2]
[338736610,1726902651186,-150.0,0.00013656,2]
[338736611,1726902651197,-1602.39,0.00013699,2]
[338736612,1726902651207,-150.0,0.00013699,2]
[338736613,1726902651217,-200.0,0.00013699,2]
[338736614,1726902651227,-298.28169976,0.0001371,2]
[338736615,1726902651237,-400.0,0.00013784,2]
[338736616,1726902651247,-451.11,0.00013798,2]
[338736617,1726902651256,-500.0,0.00013798,2]
[338736618,1726902651266,-500.0,0.00013798,2]
[338736619,1726902651277,-416.66,0.00013798,2]
[338736620,1726902651288,-500.0,0.00013798,2]
[338736621,1726902651300,-841.02,0.00013798,2]
[338736622,1726902651311,-500.0,0.00013798,2]
[338736623,1726902651321,-500.0,0.00013798,2]
[338736624,1726902651331,-500.0,0.00013798,2]
[338736625,1726902651341,-638.17,0.00013798,2]
[338736626,1726902651351,-440.15,0.00013798,2]
[338736627,1726902651360,-500.0,0.00013798,2]
[338736628,1726902651370,-195.58,0.00013798,2]
[338736629,1726902651379,-500.0,0.00013798,2]
[338736630,1726902651389,-563.72,0.00013798,2]
[338736631,1726902651400,-286.42,0.00013798,2]
[338736632,1726902651410,-438.56,0.00013798,2]
[338736633,1726902651420,-500.0,0.00013798,2]
[338736634,1726902651431,-500.0,0.00013798,2]
[338736635,1726902651441,-500.0,0.00013798,2]
[338736636,1726902651450,-500.0,0.00013798,2]
[338736637,1726902651460,-500.0,0.00013798,2]
[338736638,1726902651471,-559.24,0.00013799,2]
[338736639,1726902651490,-500.0,0.00013799,2]
[338736640,1726902651500,-378.86,0.00013799,2]
[338736641,1726902651509,-567.5,0.00013799,2]
[338736642,1726902651519,-567.5,0.00013799,2]
[338736643,1726902651529,-399.5,0.00013799,2]
[338736644,1726902651538,-1299.87,0.00013799,2]
[338736645,1726902651548,-1299.87,0.00013799,2]
[338736646,1726902651558,-500.0,0.00013799,2]
[338736647,1726902651568,-500.0,0.00013799,2]
[338736648,1726902651577,-500.0,0.00013799,2]
[338736649,1726902651587,-500.0,0.00013799,2]
[338736650,1726902651596,-500.0,0.00013799,2]
[338736651,1726902651606,-500.0,0.00013799,2]
[338736652,1726902651615,-737.13,0.00013799,2]
[338736653,1726902651625,-737.13,0.00013799,2]
[338736654,1726902651636,-500.0,0.00013799,2]
[338736655,1726902651646,-500.0,0.00013799,2]
[338736656,1726902651656,-500.0,0.00013799,2]
[338736657,1726902651666,-500.0,0.00013799,2]
[338736658,1726902651675,-500.0,0.00013799,2]
[338736659,1726902651686,-500.0,0.00013799,2]
[338736660,1726902651696,-374.7,0.00013799,2]
[338736661,1726902651707,-532.72,0.00013799,2]
[338736662,1726902651718,-532.72,0.00013799,2]
[338736663,1726902651729,-567.54,0.00013799,2]
[338736664,1726902651739,-500.0,0.00013799,2]
[338736665,1726902651748,-500.0,0.00013799,2]
[338736666,1726902651759,-500.0,0.00013799,2]
[338736667,1726902651770,-841.02,0.00013799,2]
[338736668,1726902651783,-373.91,0.00013799,2]
[338736669,1726902651793,-500.0,0.00013799,2]
[338736670,1726902651804,-281.7891314,0.00013799,2]
[338736671,1726902651815,-523.96,0.00013799,2]
[338736672,1726902651827,-500.0,0.00013799,2]
[338736673,1726902651837,-500.0,0.00013799,2]
[338736674,1726902651847,-500.0,0.00013799,2]
[338736675,1726902651857,-500.0,0.00013799,2]
[338736676,1726902651867,-426.56,0.00013799,2]
[338736677,1726902651876,-157.86839694,0.00013799,2]
[338736678,1726902651890,-342.13160306,0.00013799,2]
[338736679,1726902651902,-436.46,0.00013799,2]
[338736680,1726902651915,-443.76,0.00013799,2]
[338736681,1726902651925,-559.38,0.00013799,2]
[338736682,1726902651934,-500.0,0.00013799,2]
[338736683,1726902651945,-500.0,0.00013799,2]
[338736684,1726902651954,-235.52439694,0.00013799,2]
[338736685,1726902651966,-264.47560306,0.00013799,2]
[338736686,1726902651978,-500.0,0.00013799,2]
[338736687,1726902651987,-500.0,0.00013799,2]
[338736688,1726902651996,-500.0,0.00013799,2]
[338736689,1726902652006,-500.0,0.00013799,2]
[338736690,1726902652016,-500.0,0.00013799,2]
[338736691,1726902652026,-281.82,0.00013799,2]
[338736692,1726902652035,-334.12923094,0.00013799,2]
[338736693,1726902652049,-165.87076906,0.00013799,2]
[338736694,1726902652059,-500.0,0.00013799,2]
[338736695,1726902652070,-352.65,0.00013799,2]
[338736696,1726902652081,-500.0,0.00013799,2]
[338736697,1726902652091,-500.0,0.00013799,2]
[338736698,1726902652102,-500.0,0.00013799,2]
[338736699,1726902652112,-500.0,0.00013799,2]
[338736700,1726902652122,-461.72,0.00013799,2]
[338736701,1726902652133,-279.54,0.00013799,2]
[338736702,1726902652143,-368.66,0.00013799,2]
[338736703,1726902652153,-500.0,0.00013799,2]
[338736704,1726902652163,-219.08,0.00013799,2]
[338736705,1726902652172,-265.57,0.00013799,2]
[338736706,1726902652183,-500.0,0.00013799,2]
[338736707,1726902652192,-500.0,0.00013799,2]
[338736708,1726902652202,-500.0,0.00013799,2]
[338736709,1726902652212,-203.27,0.00013799,2]
[338736710,1726902652221,-500.0,0.00013799,2]
[338736711,1726902652231,-500.0,0.00013799,2]
[338736712,1726902652241,-271.69,0.00013799,2]
[338736713,1726902652251,-500.0,0.00013799,2]
[338736714,1726902652260,-500.0,0.00013799,2]
[338736715,1726902652269,-500.0,0.00013799,2]
[338736716,1726902652279,-500.0,0.00013799,2]
[338736717,1726902652288,-500.0,0.00013799,2]
[338736718,1726902652299,-500.0,0.00013799,2]
[338736719,1726902652308,-500.0,0.00013799,2]
[338736720,1726902652318,-235.66,0.00013799,2]
[338736721,1726902652329,-500.0,0.00013799,2]
[338736722,1726902652339,-291.72,0.00013799,2]
[338736723,1726902652349,-500.0,0.00013799,2]
[338736724,1726902652361,-500.0,0.00013799,2]
[338736725,1726902652372,-500.0,0.00013799,2]
[338736726,1726902652383,-500.0,0.00013799,2]
[338736727,1726902652393,-536.46237546,0.00013799,2]
[338736728,1726902652403,-500.0,0.00013799,2]
[338736729,1726902652413,-500.0,0.00013799,2]
[338736730,1726902652424,-500.0,0.00013799,2]
[338736731,1726902652436,-500.0,0.00013799,2]
[338736732,1726902652446,-500.0,0.00013799,2]
[338736733,1726902652456,-500.0,0.00013799,2]
[338736734,1726902652468,-500.0,0.00013799,2]
[338736735,1726902652477,-500.0,0.00013799,2]
[338736736,1726902652487,-500.0,0.00013799,2]
[338736737,1726902652497,-500.0,0.00013799,2]
[338736738,1726902652507,-500.0,0.00013799,2]
[338736739,1726902652517,-500.0,0.00013799,2]
[338736740,1726902652527,-500.0,0.00013799,2]
[338736741,1726902652537,-500.0,0.00013799,2]
[338736742,1726902652546,-500.0,0.00013799,2]
[338736743,1726902652556,-574.28,0.00013799,2]
[338736744,1726902652565,-500.0,0.00013799,2]
[338736745,1726902652574,-510.1,0.00013799,2]
[338736746,1726902652583,-168.18,0.00013799,2]
[338736747,1726902652593,-213.37,0.00013799,2]
[338736748,1726902652604,-518.26,0.00013799,2]
[338736749,1726902652616,-222.03,0.00013799,2]
[338736750,1726902652628,-413.11,0.00013799,2]
[338736751,1726902652638,-258.04,0.00013799,2]
[338736752,1726902652648,-500.0,0.00013799,2]
[338736753,1726902652657,-485.93,0.00013799,2]
[338736754,1726902652667,-181.24,0.00013799,2]
[338736755,1726902652676,-45.13725449,0.00013799,2]
[338736756,1726902652690,-264.4956,0.00013799,2]
[338736757,1726902652705,-185.11714551,0.00013799,2]
[338736758,1726902652717,-277.66,0.00013799,2]
[338736759,1726902652729,-500.0,0.00013799,2]
[338736760,1726902652741,-60.47285449,0.00013799,2]
[338736761,1726902652752,-316.32714551,0.00013799,2]
[338736762,1726902652763,-586.04,0.00013799,2]
[338736763,1726902652775,-535.00179344,0.000138,2]
[338736764,1726902652808,-500.0,0.00012885,2]
[338736765,1726902652820,-743.9391314,0.000138,2]
[338736766,1726902652839,-528.85885242,0.000138,2]
[338736767,1726902652851,-3087.7847,0.000138,2]
[338736768,1726902652863,-424.1528627,0.000138,2]
[338736769,1726902652876,-16535.4946002,0.000138,2]
[338736770,1726902652892,-178260.28092384,0.000138,2]
[338736771,1726902652904,-206.0,0.0001381,2]
[338736772,1726902652915,-422.78,0.00013836,2]
[338736773,1726902652926,-753.4,0.00013836,2]
[338736774,1726902652938,-159.98,0.00013862,2]
[338736775,1726902652949,-22235.0569849,0.00013889,2]
[338736776,1726902652959,-22235.0569849,0.0001389,2]
[338736777,1726902652968,-567.5,0.00013899,2]
[338736778,1726902652978,-567.5,0.00013899,2]
[338736779,1726902652988,-500.0,0.00013899,2]
[338736780,1726902652999,-500.0,0.00013899,2]
[338736781,1726902653009,-1299.87,0.00013899,2]
[338736782,1726902653019,-1299.87,0.00013899,2]
[338736783,1726902653029,-722.74,0.00013899,2]
[338736784,1726902653039,-722.74,0.00013899,2]
[338736785,1726902653049,-597.2,0.00013899,2]
[338736786,1726902653059,-597.2,0.00013899,2]
[338736787,1726902653070,-500.0,0.00013899,2]
[338736788,1726902653080,-500.0,0.00013899,2]
[338736789,1726902653090,-500.0,0.00013899,2]
[338736790,1726902653100,-500.0,0.00013899,2]
[338736791,1726902653110,-500.0,0.00013899,2]
[338736792,1726902653119,-249.84,0.00013899,2]
[338736793,1726902653130,-500.0,0.00013899,2]
[338736794,1726902653140,-500.0,0.00013899,2]
[338736795,1726902653150,-500.0,0.00013899,2]
[338736796,1726902653161,-500.0,0.00013899,2]
[338736797,1726902653171,-500.0,0.00013899,2]
[338736798,1726902653180,-500.0,0.00013899,2]
[338736799,1726902653190,-500.0,0.00013899,2]
[338736800,1726902653200,-500.0,0.00013899,2]
[338736801,1726902653210,-588.33,0.00013899,2]
[338736802,1726902653220,-588.33,0.00013899,2]
[338736803,1726902653229,-737.13,0.00013899,2]
[338736804,1726902653240,-737.13,0.00013899,2]
[338736805,1726902653250,-500.0,0.00013899,2]
[338736806,1726902653259,-200.22,0.00013899,2]
[338736807,1726902653269,-500.0,0.00013899,2]
[338736808,1726902653278,-500.0,0.00013899,2]
[338736809,1726902653289,-500.0,0.00013899,2]
[338736810,1726902653299,-500.0,0.00013899,2]
[338736811,1726902653310,-500.0,0.00013899,2]